bitfinex/quotes_BTCUSD_20250303
["timestamp","ask_amount","ask_price","bid_price","bid_amount"]
[1740992907658,0.163553,91713.0,91712.0,0.00012022]
[1740992908111,0.0003806,91731.0,91712.0,0.00012022]
[1740992908341,0.163532,91726.0,91719.0,0.163542]
[1740992908592,0.218047,91724.0,91712.0,0.00012022]
[1740992908800,0.163547,91717.0,91712.0,0.00012022]
[1740992909027,0.00180068,91721.0,91712.0,0.00012022]
[1740992909195,0.0003806,91731.0,91712.0,0.00012022]
[1740992909196,0.163553,91713.0,91712.0,0.00012022]
[1740992909603,0.16535368,91713.0,91712.0,0.00012022]
[1740992910711,0.163553,91713.0,91712.0,0.00012022]
[1740992911117,0.00180068,91714.0,91712.0,0.00012022]
[1740992911336,0.163553,91713.0,91712.0,0.00012022]
[1740992911816,0.16535368,91713.0,91712.0,0.00012022]
[1740992912779,0.48945368,91713.0,91712.0,0.00012022]
[1740992912979,0.487653,91713.0,91712.0,0.00012022]
[1740992913335,0.92236555,91713.0,91712.0,2.2e-07]
[1740992913744,0.91054911,91713.0,91712.0,2.2e-07]
[1740992913952,0.52810985,91704.0,91703.0,5.2e-07]
[1740992914141,0.55944493,91704.0,91703.0,5.2e-07]
[1740992914343,0.163598,91688.0,91687.0,0.0021703]
[1740992914627,0.88583953,91688.0,91687.0,0.0021703]
[1740992914752,0.88403885,91688.0,91687.0,0.0021703]
[1740992914962,0.163635,91667.0,91666.0,0.18368039]
[1740992915158,0.32590068,91685.0,91666.0,0.18368039]
[1740992915361,0.3241,91685.0,91666.0,0.34731739]
[1740992915612,0.218152,91680.0,91667.0,0.218181]
[1740992915812,0.163616,91678.0,91668.0,0.218178]
[1740992916012,0.00180068,91677.0,91673.0,0.163624]
[1740992916218,0.00180068,91681.0,91666.0,0.18368039]
[1740992916420,0.00180068,91679.0,91667.0,0.300581]
[1740992916623,0.00180068,91693.0,91692.0,0.163591]
[1740992916822,0.00180068,91709.0,91670.0,0.3]
[1740992917024,0.00180068,91709.0,91697.0,0.218108]
[1740992917230,0.00180068,91709.0,91708.0,0.163562]
[1740992917465,0.0003406,91730.0,91729.0,0.163525]
[1740992918597,0.00046109,91730.0,91713.0,0.3]
[1740992918779,0.00046109,91730.0,91710.0,0.3]
[1740992919194,0.00046109,91730.0,91686.0,0.5938]
[1740992919422,0.00046109,91730.0,91719.0,0.163542]
[1740992919596,0.00046109,91730.0,91702.0,0.01144972]
[1740992919800,0.00180068,91729.0,91703.0,0.00152653]
[1740992920204,0.00180068,91729.0,91706.0,0.218086]
[1740992920342,0.00180068,91729.0,91717.0,0.163545]
[1740992920552,0.00180068,91729.0,91702.0,0.3]
[1740992920750,0.00046109,91730.0,91723.0,0.163535]
[1740992920956,0.00046109,91730.0,91729.0,0.163525]
[1740992921617,0.00046109,91730.0,91714.0,0.218067]
[1740992921814,0.00046109,91730.0,91714.0,0.0015264]
[1740992922116,0.00046109,91730.0,91729.0,0.163525]
[1740992922346,0.00046109,91730.0,91729.0,0.16505119]
[1740992922520,0.00046109,91730.0,91729.0,0.163525]
[1740992923845,9e-08,91730.0,91729.0,0.9351919]
[1740992924046,9e-08,91730.0,91729.0,0.93366585]
[1740992924653,0.00180068,91774.0,91740.0,0.3]
[1740992924851,0.0024117,91760.0,91759.0,0.163471]
[1740992926532,0.0024117,91760.0,91759.0,0.463471]
[1740992926950,0.0024117,91760.0,91759.0,0.588871]
[1740992927839,0.0024117,91760.0,91747.0,0.0814]
[1740992928041,0.0024117,91760.0,91738.0,0.0498]
[1740992928173,0.0024117,91760.0,91758.0,0.163472]
[1740992928551,0.0024117,91760.0,91759.0,0.30152569]
[1740992928682,0.0024117,91760.0,91759.0,0.3]
[1740992929507,0.0027523,91760.0,91759.0,0.3]
[1740992930841,0.0027523,91760.0,91759.0,0.163471]
[1740992931886,0.0027523,91760.0,91759.0,0.1649966]
[1740992932061,0.0027523,91760.0,91759.0,0.3373166]
[1740992932261,0.0027523,91760.0,91759.0,0.35033185]
[1740992932466,3e-07,91760.0,91759.0,1.02643185]
[1740992935100,4e-07,91775.0,91774.0,0.463444]
[1740992935295,4e-07,91775.0,91774.0,0.88648485]
[1740992935498,8.6e-07,91775.0,91774.0,1.48028485]
[1740992936278,8.6e-07,91785.0,91775.0,0.36454085]
[1740992936480,8.6e-07,91791.0,91784.0,0.31454085]
[1740992936748,0.0003412,91816.0,91797.0,0.05]
[1740992936920,2e-07,91816.0,91815.0,0.47791185]
[1740992937224,0.00012064,91816.0,91815.0,0.97373185]
[1740992937801,0.00012064,91816.0,91815.0,0.959191]
[1740992938418,0.00012064,91816.0,91815.0,0.98514119]
[1740992940322,0.000341,91835.0,91815.0,0.98514119]
[1740992940323,3.4e-07,91822.0,91818.0,0.3]
[1740992940522,3.4e-07,91835.0,91834.0,0.163338]
[1740992940865,3.4e-07,91835.0,91834.0,0.47940299]
[1740992941011,3.4e-07,91835.0,91834.0,0.47787885]
[1740992942385,3.4e-07,91835.0,91834.0,0.88637885]
[1740992942752,3.4e-07,91835.0,91834.0,0.93637885]
[1740992942978,3.4e-07,91835.0,91834.0,0.98637885]
[1740992943689,0.0019159,91837.0,91836.0,0.05]
[1740992943920,9e-07,91837.0,91836.0,0.52939874]
[1740992944126,4e-07,91853.0,91852.0,0.0469]
[1740992944257,7e-07,91853.0,91852.0,1.48681055]
[1740992944606,7e-07,91853.0,91852.0,1.53528685]
[1740992945457,7e-07,91853.0,91852.0,1.48528685]
[1740992946567,7e-07,91853.0,91852.0,1.53528685]
[1740992946745,0.00201,91884.0,91852.0,1.53528685]
[1740992946746,6e-07,91870.0,91865.0,0.05]
[1740992946968,6e-07,91870.0,91869.0,0.52781585]
[1740992947120,0.00012096,91870.0,91869.0,0.52781585]
[1740992947302,0.00012096,91870.0,91869.0,0.47781585]
[1740992950211,2.6e-07,91877.0,91876.0,0.163263]
[1740992950365,2.6e-07,91877.0,91876.0,0.80642721]
[1740992950563,2.6e-07,91877.0,91876.0,0.80490385]
[1740992950990,2.6e-07,91884.0,91883.0,0.47779185]
[1740992951149,2.6e-07,91884.0,91883.0,0.56739185]
[1740992951882,2.6e-07,91884.0,91883.0,0.57886835]
[1740992952086,2.6e-07,91884.0,91883.0,0.65586835]
[1740992952293,2.6e-07,91884.0,91883.0,0.98296835]
[1740992952727,6e-07,91899.0,91893.0,0.3]
[1740992952949,6e-07,91900.0,91899.0,0.463222]
[1740992953165,6e-07,91900.0,91899.0,0.47776285]
[1740992953397,0.0001209,91900.0,91899.0,0.47776285]
[1740992954588,0.000291,91900.0,91899.0,0.47776285]
[1740992954804,0.000291,91900.0,91899.0,0.80486285]
[1740992955528,0.0003404,91908.0,91907.0,0.463208]
[1740992955733,4e-07,91908.0,91907.0,0.47774885]
[1740992955959,4e-07,91908.0,91907.0,0.80484885]
[1740992957709,4e-07,91908.0,91907.0,0.83515827]
[1740992958309,4e-07,91908.0,91907.0,0.790308]
[1740992959917,4e-07,91908.0,91907.0,0.80484885]
[1740992960118,4e-07,91908.0,91907.0,0.83515827]
[1740992960321,4e-07,91908.0,91907.0,1.42895827]
[1740992960521,4e-07,91915.0,91914.0,0.47773685]
[1740992960858,4e-07,91915.0,91914.0,1.45392542]
[1740992961060,4e-07,91915.0,91914.0,1.423616]
[1740992962016,4e-07,91915.0,91914.0,1.45392542]
[1740992962413,4e-07,91915.0,91914.0,1.423616]
[1740992962972,4e-07,91915.0,91914.0,1.123616]
[1740992963171,4e-07,91915.0,91914.0,1.034096]
[1740992963483,4e-07,91915.0,91914.0,1.423616]
[1740992963653,4e-07,91915.0,91914.0,1.123616]
[1740992963850,4e-07,91915.0,91914.0,1.423616]
[1740992964250,4e-07,91915.0,91914.0,0.879816]
[1740992965031,4e-07,91915.0,91914.0,0.91012542]
[1740992966243,4e-07,91915.0,91914.0,0.879816]
[1740992966503,4e-07,91915.0,91914.0,0.91012542]
[1740992966850,0.0001703,91915.0,91914.0,0.91012542]
[1740992967551,0.163125,91954.0,91947.0,0.163136]
[1740992967749,0.163128,91952.0,91946.0,0.163137]
[1740992967945,0.00040115,91954.0,91931.0,0.3]
[1740992968169,0.00040115,91954.0,91929.0,0.01139825]
[1740992968367,0.00040115,91954.0,91920.0,0.27402005]
[1740992968571,0.217504,91952.0,91932.0,0.21755]
[1740992968775,0.217504,91952.0,91934.0,0.163158]
[1740992968988,0.00040115,91954.0,91918.0,0.3271]
[1740992969163,0.00040115,91954.0,91933.0,0.16316]
[1740992969363,0.217507,91951.0,91921.0,0.217578]
[1740992969565,0.163141,91945.0,91938.0,0.163151]
[1740992969768,0.00040115,91954.0,91923.0,0.00152282]
[1740992969969,0.217507,91952.0,91933.0,0.163161]
[1740992970267,0.3241,91951.0,91907.0,0.0898598]
[1740992970495,0.01454085,91950.0,91910.0,0.27402005]
[1740992970691,0.01454085,91950.0,91907.0,0.0003398]
[1740992971023,0.16319,91917.0,91907.0,0.0003398]
[1740992971218,0.0825,91945.0,91907.0,0.0003398]
[1740992971419,0.01454085,91944.0,91907.0,0.0003398]
[1740992971574,0.0825,91945.0,91910.0,0.27402005]
[1740992971962,0.01454085,91943.0,91907.0,0.0003398]
[1740992972184,0.01454085,91943.0,91909.0,0.217604]
[1740992972390,0.01454085,91941.0,91908.0,0.217608]
[1740992972562,0.163206,91908.0,91907.0,0.0003398]
[1740992972767,0.217575,91922.0,91907.0,0.0003398]
[1740992972977,0.3,91939.0,91918.0,0.217584]
[1740992973227,0.3716,91940.0,91909.0,0.00152313]
[1740992973430,0.3716,91940.0,91907.0,0.0003398]
[1740992973734,0.3716,91940.0,91930.0,0.163166]
[1740992974045,0.3716,91940.0,91928.0,0.163169]
[1740992974046,0.217539,91938.0,91928.0,0.163169]
[1740992974242,0.3717203,91940.0,91916.0,0.163191]
[1740992974380,0.3717203,91940.0,91910.0,0.08952]
[1740992974587,0.163185,91921.0,91914.0,0.163195]
[1740992974788,0.01454085,91939.0,91910.0,0.08952]
[1740992975007,0.163206,91908.0,91907.0,0.0003398]
[1740992975968,0.217601,91911.0,91907.0,0.0003398]
[1740992975969,0.076,91914.0,91908.0,0.217608]
[1740992976161,0.0791,91928.0,91907.0,0.0003398]
[1740992976389,0.163206,91908.0,91907.0,0.0003398]
[1740992976681,0.217563,91927.0,91907.0,0.0003398]
[1740992976916,0.163206,91908.0,91907.0,0.0003398]
[1740992977272,0.0791,91928.0,91907.0,0.0003398]
[1740992977443,0.163206,91908.0,91907.0,0.0003398]
[1740992981305,0.0791,91928.0,91910.0,0.163202]
[1740992981548,0.0791,91928.0,91907.0,0.0003398]
[1740992982163,0.163206,91908.0,91907.0,0.0003398]
[1740992983421,0.33245648,91926.0,91907.0,0.0003398]
[1740992983634,0.163206,91908.0,91907.0,0.0003398]
[1740992983837,0.21759,91916.0,91907.0,0.0003398]
[1740992984038,0.163194,91916.0,91907.0,0.2179488]
[1740992984323,0.33245648,91926.0,91907.0,0.0003398]
[1740992984481,0.217573,91923.0,91907.0,0.0003398]
[1740992984681,0.217592,91916.0,91907.0,0.0003398]
[1740992984884,0.217573,91923.0,91907.0,0.0003398]
[1740992985221,0.01454085,91924.0,91907.0,0.0003398]
[1740992985222,0.163206,91908.0,91907.0,0.0003398]
[1740992986952,0.17774685,91908.0,91907.0,0.0003398]
[1740992987183,0.88294685,91908.0,91907.0,0.0003398]
[1740992988540,0.88294685,91908.0,91853.0,0.08952]
[1740992988541,0.05,91899.0,91853.0,0.08952]
[1740992988748,0.163293,91859.0,91853.0,0.08952]
[1740992989103,0.163293,91859.0,91845.0,0.09685892]
[1740992989312,0.122,91877.0,91855.0,0.217734]
[1740992989514,0.217653,91889.0,91857.0,0.217728]
[1740992989661,0.3241,91888.0,91871.0,0.163271]
[1740992989860,0.01454085,91883.0,91871.0,0.163271]
[1740992990100,0.163263,91876.0,91869.0,0.163274]
[1740992990271,0.00823186,91898.0,91858.0,0.0021203]
[1740992990611,0.0477,91907.0,91866.0,0.08952]
[1740992990807,0.217613,91906.0,91885.0,0.163246]
[1740992990951,0.217616,91905.0,91885.0,0.163246]
[1740992991157,0.217616,91905.0,91866.0,0.08952]
[1740992991376,0.01454085,91906.0,91868.0,0.217703]
[1740992991593,0.01454085,91906.0,91866.0,0.08952]
[1740992991594,0.163241,91889.0,91882.0,0.163252]
[1740992991790,0.06722409,91907.0,91869.0,0.00152367]
[1740992991791,0.06722409,91907.0,91869.0,0.08952]
[1740992992272,0.06722409,91907.0,91880.0,0.217673]
[1740992992405,0.21765,91891.0,91869.0,0.08952]
[1740992992606,0.01454085,91906.0,91871.0,0.16327]
[1740992992808,0.01454085,91906.0,91869.0,0.08952]
[1740992993141,0.217664,91885.0,91869.0,0.08952]
[1740992993325,0.163252,91883.0,91869.0,0.08952]
[1740992993539,0.01454085,91903.0,91869.0,0.08952]
[1740992993732,0.217627,91900.0,91843.0,0.002]
[1740992993911,0.01454085,91899.0,91873.0,0.163267]
[1740992994113,0.01454085,91899.0,91863.0,0.00152383]
[1740992994318,0.163252,91883.0,91876.0,0.163263]
[1740992994615,0.01454085,91899.0,91862.0,0.08956]
[1740992994813,0.163233,91893.0,91863.0,0.00152383]
[1740992995016,0.3241,91902.0,91887.0,0.163242]
[1740992995245,0.3241,91906.0,91863.0,0.00152383]
[1740992995516,0.34362409,91907.0,91863.0,0.32862383]
[1740992995749,0.3241,91907.0,91897.0,0.163225]
[1740992995946,0.3241,91916.0,91872.0,0.16327]
[1740992996147,0.3715,91921.0,91873.0,0.32862346]
[1740992996320,0.163203,91910.0,91902.0,0.163215]
[1740992996517,0.3241,91921.0,91874.0,0.00152346]
[1740992996720,0.163217,91902.0,91896.0,0.163227]
[1740992996933,0.01454085,91920.0,91875.0,0.217687]
[1740992997105,0.01454085,91919.0,91876.0,0.217684]
[1740992997437,0.31454085,91917.0,91881.0,0.163254]
[1740992997637,0.01454085,91915.0,91881.0,0.163252]
[1740992997841,0.01454085,91905.0,91876.0,0.0001203]
[1740992998041,0.01454085,91912.0,91876.0,0.0001203]
[1740992998268,0.163261,91877.0,91876.0,0.0001203]
[1740992998468,0.01454085,91916.0,91876.0,0.0001203]
[1740992998621,0.163248,91885.0,91876.0,0.0001203]
[1740992998843,0.163245,91886.0,91878.0,0.163259]
[1740992999045,0.163244,91887.0,91876.0,0.0001203]
[1740992999277,0.3241,91913.0,91876.0,0.0001203]
[1740992999438,0.163227,91897.0,91876.0,0.0001203]
[1740992999643,0.163223,91899.0,91894.0,0.163231]
[1740992999887,0.163223,91899.0,91892.0,0.163233]
[1740993000064,0.163224,91898.0,91892.0,0.163233]
[1740993000363,0.3,91916.0,91876.0,0.0001203]
[1740993000534,0.01454085,91915.0,91876.0,0.0001203]
[1740993000959,0.3241,91920.0,91881.0,0.0828]
[1740993001168,0.16316,91934.0,91926.0,0.163173]
[1740993001376,0.3241,91935.0,91896.0,0.08952]
[1740993001593,0.01116609,91937.0,91898.0,0.217632]
[1740993001832,0.09712326,91944.0,91906.0,0.217611]
[1740993001986,0.163203,91910.0,91897.0,0.3271]
[1740993002169,0.163206,91909.0,91896.0,0.307157]
[1740993002369,0.01454085,91936.0,91896.0,0.08952]
[1740993002623,0.31454085,91934.0,91896.0,0.08952]
[1740993002926,0.217628,91900.0,91884.0,0.3271]
[1740993003098,0.217628,91900.0,91880.0,0.217675]
[1740993003303,0.163242,91888.0,91880.0,0.217675]
[1740993003532,0.01454085,91917.0,91880.0,0.0001203]
[1740993003733,0.163248,91885.0,91880.0,0.0001203]
[1740993003943,0.31454085,91915.0,91880.0,0.0001203]
[1740993004142,0.163238,91891.0,91880.0,0.0001203]
[1740993004348,0.21764,91895.0,91887.0,0.163243]
[1740993004522,0.163232,91894.0,91886.0,0.217658]
[1740993004727,0.01454085,91914.0,91887.0,0.163242]
[1740993004932,0.01454085,91914.0,91887.0,0.163243]
[1740993005135,0.163233,91894.0,91888.0,0.163241]
[1740993005332,0.163233,91893.0,91888.0,0.163241]
[1740993005505,0.3,91915.0,91880.0,0.0001203]
[1740993005727,0.217608,91908.0,91880.0,0.0001203]
[1740993006071,0.01454085,91907.0,91880.0,0.0001203]
[1740993006212,0.163248,91885.0,91880.0,0.0001203]
[1740993006511,0.01454085,91909.0,91880.0,0.0001203]
[1740993006512,0.01454085,91909.0,91886.0,0.163245]
[1740993006726,0.163254,91881.0,91880.0,0.0001203]
[1740993006974,0.01150739,91896.0,91880.0,0.0001203]
[1740993007230,0.163234,91893.0,91886.0,0.163244]
[1740993007425,0.032748,91908.0,91880.0,0.0001203]
[1740993007644,0.163223,91899.0,91881.0,0.217672]
[1740993007845,0.163223,91899.0,91893.0,0.163231]
[1740993008023,0.36846474,91909.0,91884.0,0.163247]
[1740993008228,0.163248,91885.0,91880.0,0.0001203]
[1740993008446,0.01454085,91908.0,91880.0,0.0001203]
[1740993008653,0.163251,91883.0,91880.0,0.0001203]
[1740993008845,0.217662,91886.0,91880.0,0.0001203]
[1740993009109,0.163251,91883.0,91880.0,0.0001203]
[1740993009228,0.01454085,91895.0,91880.0,0.0001203]
[1740993009422,0.01454085,91895.0,91880.0,0.1633763]
[1740993009671,0.163254,91881.0,91880.0,0.0001203]
[1740993009873,0.17779485,91881.0,91880.0,0.0001203]
[1740993011160,0.48584893,91881.0,91880.0,0.0001203]
[1740993012793,0.18584893,91881.0,91880.0,0.0001203]
[1740993013013,0.17779485,91881.0,91880.0,0.0001203]
[1740993014053,0.17779485,91881.0,91880.0,0.0004609]
[1740993014245,0.50189485,91881.0,91880.0,0.0004609]
[1740993014869,0.33864085,91881.0,91880.0,0.0004609]
[1740993015070,0.50189485,91881.0,91880.0,0.0004609]
[1740993019229,0.3241,91881.0,91880.0,0.0004609]
[1740993019392,0.05,91913.0,91880.0,0.0004609]
[1740993019393,0.3241,91906.0,91880.0,0.0004609]
[1740993019600,0.3242703,91907.0,91880.0,0.0004609]
[1740993019802,0.3242703,91907.0,91882.0,0.217668]
[1740993020001,0.01454085,91906.0,91880.0,0.0004609]
[1740993020246,0.01454085,91905.0,91889.0,0.163238]
[1740993020458,0.01454085,91905.0,91880.0,0.0004609]
[1740993020459,0.217616,91905.0,91881.0,0.217672]
[1740993020582,0.163228,91896.0,91890.0,0.163238]
[1740993020779,0.163229,91895.0,91890.0,0.163238]
[1740993021135,0.163237,91891.0,91885.0,0.163246]
[1740993021369,0.3242703,91907.0,91880.0,0.0004609]
[1740993021619,0.3242703,91907.0,91901.0,0.163218]
[1740993021749,0.16321,91906.0,91901.0,0.163218]
[1740993021947,0.16321,91906.0,91898.0,0.21763]
[1740993022145,0.0001703,91907.0,91873.0,0.3]
[1740993022485,0.217613,91906.0,91881.0,0.463254]
[1740993022664,0.0001703,91907.0,91881.0,0.3]
[1740993022864,0.163235,91892.0,91886.0,0.163244]
[1740993023066,0.16324,91889.0,91884.0,0.163248]
[1740993023290,0.163242,91889.0,91882.0,0.163252]
[1740993023504,0.163218,91902.0,91881.0,0.3]
[1740993023680,0.163215,91903.0,91897.0,0.163224]
[1740993023862,0.217613,91906.0,91894.0,0.217642]
[1740993024061,0.217613,91906.0,91896.0,0.217637]
[1740993024418,0.163215,91903.0,91882.0,0.0015235]
[1740993024723,0.2177813,91907.0,91901.0,0.163218]
[1740993024891,0.2177813,91907.0,91895.0,0.0825]
[1740993024892,0.0001703,91907.0,91895.0,0.0825]
[1740993025496,0.0001703,91907.0,91895.0,0.09361737]
[1740993025701,0.0001703,91907.0,91906.0,0.16321]
[1740993026024,0.0001703,91907.0,91906.0,0.46473317]
[1740993026203,0.0001703,91907.0,91906.0,0.54551]
[1740993026558,0.09712326,91941.0,91940.0,0.163149]
[1740993026762,0.09712326,91941.0,91936.0,0.29984]
[1740993026960,0.09712326,91941.0,91936.0,0.0823]
[1740993027381,0.09712326,91941.0,91940.0,0.163149]
[1740993027738,0.09712326,91941.0,91936.0,0.0823]
[1740993027961,0.09724356,91941.0,91940.0,0.163149]
[1740993028936,0.09724356,91941.0,91940.0,0.463149]
[1740993031221,0.0001203,91941.0,91940.0,0.463149]
[1740993032680,0.0001203,91941.0,91939.0,0.3271]
[1740993032843,0.0001203,91941.0,91931.0,0.08948]
[1740993032988,0.0001203,91941.0,91926.0,0.0805]
[1740993033187,0.0001203,91941.0,91922.0,0.08948]
[1740993033387,0.0001203,91941.0,91922.0,0.39100286]
[1740993033675,0.0001203,91941.0,91940.0,0.163149]
[1740993034035,0.0001203,91941.0,91940.0,0.463149]
[1740993034299,0.0001203,91941.0,91940.0,0.871149]
[1740993035537,5.069e-05,91960.0,91957.0,0.542619]
[1740993035736,0.00057063,91958.0,91957.0,0.679559]
[1740993036940,0.00057063,91958.0,91957.0,0.590119]
[1740993037360,0.00057063,91958.0,91957.0,0.679559]
[1740993040898,0.00057063,91958.0,91957.0,1.550459]
[1740993042426,0.00057063,91958.0,91957.0,1.550419]
[1740993044404,0.00057063,91958.0,91957.0,1.461019]
[1740993046510,0.00057063,91958.0,91957.0,0.8709]
[1740993046791,0.00057063,91958.0,91923.0,0.01125797]
[1740993046792,0.00057063,91958.0,91936.0,0.0825]
[1740993046915,0.00057063,91958.0,91953.0,0.163125]
[1740993047119,0.16368863,91958.0,91947.0,0.217514]
[1740993047323,0.16368863,91958.0,91940.0,0.0894]
[1740993047324,0.00057063,91958.0,91957.0,0.163119]
[1740993048367,0.00057063,91958.0,91941.0,0.517528]
[1740993048604,0.00057063,91958.0,91954.0,0.163124]
[1740993048795,0.00057063,91958.0,91957.0,0.163119]
[1740993049210,0.00799247,91981.0,91957.0,0.163119]
[1740993049508,0.163105,91965.0,91958.0,0.163117]
[1740993049842,0.00213018,91977.0,91954.0,0.163123]
[1740993050065,0.00213018,91977.0,91874.0,0.002]
[1740993050215,0.163115,91960.0,91952.0,0.163128]
[1740993050420,0.163115,91960.0,91953.0,0.163125]
[1740993050642,0.217485,91961.0,91951.0,0.217505]
[1740993050785,0.217448,91976.0,91944.0,0.3]
[1740993050994,0.163116,91959.0,91953.0,0.163126]
[1740993051189,0.00213018,91977.0,91941.0,0.3271]
[1740993051516,0.163122,91956.0,91949.0,0.163132]
[1740993051704,0.163122,91956.0,91947.0,0.217515]
[1740993051968,0.163125,91954.0,91949.0,0.163133]
[1740993052146,0.163123,91955.0,91949.0,0.163133]
[1740993052347,0.217448,91976.0,91942.0,0.517528]
[1740993052589,0.00213018,91977.0,91955.0,0.163123]
[1740993052800,0.163114,91961.0,91955.0,0.163122]
[1740993053103,0.163115,91960.0,91954.0,0.163124]
[1740993053303,0.217477,91964.0,91955.0,0.163121]
[1740993053504,0.217474,91966.0,91955.0,0.163121]
[1740993053722,0.00213018,91977.0,91949.0,0.21751]
[1740993053918,0.00213018,91977.0,91951.0,0.163128]
[1740993054061,0.01454085,91975.0,91930.0,0.0459]
[1740993054259,0.163144,91943.0,91937.0,0.163153]
[1740993054559,0.3241,91974.0,91936.0,0.08936]
[1740993054809,0.32611,91977.0,91940.0,0.27402005]
[1740993055011,0.32611,91977.0,91942.0,0.3]
[1740993055168,0.163103,91967.0,91961.0,0.163112]
[1740993055369,0.217448,91976.0,91955.0,0.217495]
[1740993055668,0.217448,91976.0,91942.0,0.3]
[1740993055669,0.163106,91965.0,91960.0,0.163114]
[1740993055871,0.163103,91967.0,91961.0,0.163111]
[1740993056078,0.163103,91967.0,91939.0,0.3]
[1740993056079,0.163099,91969.0,91949.0,0.00152241]
[1740993056283,0.1631,91968.0,91962.0,0.163109]
[1740993056488,0.00012018,91976.0,91951.0,0.3]
[1740993056692,0.00012018,91976.0,91952.0,0.07792218]
[1740993056918,0.00012018,91976.0,91953.0,0.217502]
[1740993057127,0.00012018,91976.0,91955.0,0.217497]
[1740993057371,0.00012018,91976.0,91972.0,0.163091]
[1740993057606,0.217452,91974.0,91960.0,0.08936]
[1740993057900,0.217452,91974.0,91962.0,0.3]
[1740993058205,2.582e-05,91976.0,91960.0,0.08936]
[1740993058206,0.163112,91961.0,91960.0,0.08936]
[1740993058501,0.163125,91954.0,91953.0,0.3]
[1740993058701,0.217452,91974.0,91949.0,0.08936]
[1740993059059,2.582e-05,91976.0,91949.0,0.08936]
[1740993059381,2.582e-05,91976.0,91938.0,0.08936]
[1740993059605,0.0471,91975.0,91943.0,0.163143]
[1740993059948,0.0471,91975.0,91938.0,0.08936]
[1740993060088,2.582e-05,91976.0,91940.0,0.27402005]
[1740993060296,0.163109,91963.0,91957.0,0.163118]
[1740993060610,0.163109,91964.0,91957.0,0.163118]
[1740993060933,2.582e-05,91976.0,91938.0,0.0897004]
[1740993060934,0.21745,91975.0,91938.0,0.0897004]
[1740993061139,2.582e-05,91976.0,91943.0,0.3]
[1740993061330,2.582e-05,91976.0,91944.0,0.00152244]
[1740993061674,2.582e-05,91976.0,91953.0,0.163126]
[1740993061675,0.163109,91963.0,91953.0,0.163126]
[1740993061874,0.217474,91965.0,91955.0,0.163121]
[1740993062240,0.217474,91965.0,91943.0,0.217524]
[1740993062241,0.217456,91973.0,91945.0,0.3]
[1740993062478,2.582e-05,91976.0,91946.0,0.00152244]
[1740993062652,2.582e-05,91976.0,91975.0,0.163087]
[1740993062999,2.582e-05,91976.0,91956.0,0.0797]
[1740993063162,2.582e-05,91976.0,91975.0,0.163087]
[1740993063393,2.582e-05,91976.0,91958.0,0.3]
[1740993063537,2.582e-05,91976.0,91975.0,0.163087]
[1740993063740,2.582e-05,91976.0,91973.0,0.163089]
[1740993063958,2.582e-05,91976.0,91975.0,0.163087]
[1740993064954,0.217462,91970.0,91951.0,0.30609999]
[1740993065169,2.582e-05,91976.0,91951.0,0.31732247]
[1740993065711,0.217488,91960.0,91951.0,0.30609999]
[1740993065852,2.582e-05,91976.0,91951.0,0.30609999]
[1740993065853,0.163128,91952.0,91951.0,0.30609999]
[1740993066823,0.217469,91967.0,91951.0,0.30609999]
[1740993066824,0.163127,91953.0,91951.0,0.30609999]
[1740993067004,0.163128,91952.0,91951.0,0.30609999]
[1740993067170,0.21745,91975.0,91951.0,0.30609999]
[1740993067489,0.163128,91952.0,91951.0,0.30609999]
[1740993067694,0.00201,91977.0,91938.0,0.0003404]
[1740993067695,0.163151,91939.0,91938.0,0.0003404]
[1740993067872,0.16315,91940.0,91938.0,0.0003404]
[1740993068072,0.01454085,91969.0,91938.0,0.0003404]
[1740993068254,0.163151,91939.0,91938.0,0.0003404]
[1740993068458,0.163146,91942.0,91938.0,0.0003404]
[1740993068746,0.163151,91939.0,91938.0,0.0003404]
[1740993069418,0.163151,91939.0,91938.0,0.00074123]
[1740993070247,0.01146654,91949.0,91938.0,0.00074123]
[1740993070456,0.05471456,91971.0,91938.0,0.00074123]
[1740993070660,0.01129055,91966.0,91938.0,0.00074123]
[1740993070865,0.163102,91967.0,91940.0,0.3]
[1740993071067,0.217462,91970.0,91953.0,0.3]
[1740993071068,0.163117,91959.0,91953.0,0.3]
[1740993071269,0.163118,91958.0,91943.0,0.3]
[1740993071486,0.34368182,91971.0,91943.0,0.3]
[1740993071692,0.163121,91956.0,91950.0,0.3]
[1740993071839,0.163118,91958.0,91951.0,0.163128]
[1740993072049,0.00201,91977.0,91953.0,0.217502]
[1740993072262,0.00201,91977.0,91966.0,0.21747]
[1740993072603,0.00201,91977.0,91951.0,0.35943672]
[1740993072807,0.163086,91976.0,91951.0,0.35943672]
[1740993073133,0.00201,91977.0,91952.0,0.00152218]
[1740993073618,0.163088,91975.0,91966.0,0.217471]
[1740993073940,0.0001701,91976.0,91973.0,0.163091]
[1740993074168,0.0001701,91976.0,91970.0,0.163096]
[1740993074388,0.0001701,91976.0,91969.0,0.3]
[1740993074618,0.0001701,91976.0,91970.0,0.163095]
[1740993075036,0.0001701,91976.0,91940.0,0.27402005]
[1740993075228,0.0001701,91976.0,91950.0,0.217507]
[1740993075421,0.217472,91966.0,91951.0,0.30609999]
[1740993075654,0.0001701,91976.0,91951.0,0.30609999]
[1740993075884,0.163126,91953.0,91951.0,0.30609999]
[1740993076091,0.163126,91953.0,91930.0,0.0764]
[1740993076213,0.163126,91953.0,91929.0,0.011203]
[1740993076406,0.163126,91953.0,91920.0,0.0497]
[1740993076407,0.163126,91953.0,91921.0,0.00152282]
[1740993076626,0.17422749,91953.0,91934.0,0.16316]
[1740993076823,0.17422749,91953.0,91932.0,0.31440792]
[1740993077054,0.17422749,91953.0,91933.0,0.3]
[1740993077253,0.17422749,91953.0,91932.0,0.09685892]
[1740993077992,0.163126,91953.0,91932.0,0.09685892]
[1740993078187,0.163126,91953.0,91937.0,0.163155]
[1740993078418,0.163126,91953.0,91935.0,0.3]
[1740993078619,0.163126,91953.0,91936.0,0.163156]
[1740993078761,0.163126,91953.0,91937.0,0.163155]
[1740993079183,0.163126,91953.0,91935.0,0.3]
[1740993079184,0.163126,91953.0,91936.0,0.217542]
[1740993079384,0.163126,91953.0,91935.0,0.3]